Cogmind - Beta 17 @@@ ROGUE MODE // 2026.06.28 @ 18:59:54 Player: Careless Squirrel Result: Destroyed by G-47 Trooper with Particle Gun Performance ------------- Evolutions (0) 0 Regions Visited (1) 200 Robots Destroyed (5) 25 Value Destroyed (183) 183 Prototype IDs (0) 0 Alien Tech Used (0) 0 Bonus (0) 0 TOTAL SCORE: 408 Bonus ------- None Cogmind --------- Core Integrity 0/250 Matter 300/300 Energy 100/100 System Corruption 0% Temperature Cool (9) Movement Core (100) Ox1 Location -10/Materials Parts ------- > --- POWER (1) -------- (None) > --- PROPULSION (2) --- (None) > --- UTILITY (2) ------ Small Storage Unit > --- WEAPON (2) ------- (None) > --- INVENTORY (8) ---- Ion Engine Light Ion Engine Light Cannon Peak State ------------ > --- POWER ------------ Ion Engine > --- PROPULSION ------- Aluminum Leg Aluminum Leg > --- UTILITY ---------- Small Storage Unit > --- WEAPON ----------- EM Pulse Gun Medium Laser > --- INVENTORY -------- Light Treads Assault Rifle [Rating: 6] Favorites ----------- Power Ion Engine Engine Ion Engine Propulsion Aluminum Leg Leg Aluminum Leg Utility Small Storage Unit Storage Small Storage Unit Weapon Medium Laser Energy Gun Medium Laser Ballistic Gun Assault Rifle Special Weapon Mining Laser Build | -11 -10 ------- Run | Yrd Mat Slots Evolved . | . . Power . | . . Propulsion . | . . Utility . | . . Weapon . | . . Parts Attached 9 | 6 3 Power 1 | 1 . Engine 1 | 1 . Core . | . . Reactor . | . . Propulsion 2 | 2 . Treads . | . . Leg 2 | 2 . Wheel . | . . Hover . | . . Flight . | . . Utility 1 | 1 . Device . | . . Storage 1 | 1 . Processor . | . . Hackware . | . . Protection . | . . Artifact . | . . Weapon 5 | 2 3 Energy Gun 2 | 2 . Energy Cannon . | . . Ballistic Gun 1 | . 1 Ballistic Cannon . | . . Launcher . | . . Special Weapon 2 | . 2 Impact Weapon . | . . Slashing Weapon . | . . Piercing Weapon . | . . Special Melee Weapon . | . . Unidentified Prototypes . | . . Parts Lost 8 | . 8 Power 1 | . 1 Propulsion 2 | . 2 Utility . | . . Weapon 5 | . 5 Highest Loss Streak 8 | . 8 To Critical Strikes . | . . Average Backups 2 | 1 2 Power 1 | . 1 Propulsion . | . . Utility . | . . Weapon . | 1 . Tool/Special . | . . Unused Backups 3 | 1 2 Power 2 | . 2 Propulsion 1 | 1 . Utility . | . . Weapon . | . . Tool/Special . | . . Average Slot Usage (%) 72 | . 72 Engine 11 | . 11 Leg 21 | . 21 Storage 14 | . 14 Energy Gun 20 | . 20 Ballistic Gun 2 | . 2 Special Weapon 1 | . 1 Peak Build Rating 6 | 6 6 Average Rating 4 | 4 5 On Entrance 3 | . 6 Avg Prop Armor Cover (%) . | . . Naked Turns . | . . Heaviest Build 14 | 14 14 Greatest Support 20 | 20 20 Greatest Overweight (x) 1 | . 1 Average Overweight (x) . | . . Largest Inventory Capacity 8 | 8 8 Average Capacity 7 | 6 8 Most Carried 5 | 5 3 Average Carried 2 | 1 2 Final Capacity 8 | 8 8 Final Carried 3 | 2 3 Class Distribution -------------------- 100% | Mutant Dominant Class ---------------- Mutant | -10/Materials Resources | -11 -10 ----------- Run | Yrd Mat Matter Collected 278 | 222 56 Remotely . | . . Salvage Created 172 | . 172 Parts 9 | . 9 Haulers Intercepted . | . . Recyclers Shooed . | . . Parts Field Recycled . | . . Retrieved Matter . | . . Parts Self-Destructed . | . . Prevented . | . . Parts Restored . | . . Kills | -11 -10 ------- Run | Yrd Mat Combat Hostiles Destroyed 5 | . 5 Guns 4 | . 4 Cannons 1 | . 1 Classes Destroyed 1 | . 1 Grunt 5 | . 5 Best Kill Streak 2 | . 2 Combat Bots Only 2 | . 2 Max Kills in Single Turn 1 | . 1 Gunslinging . | . . Exploded . | . . Melee . | . . Uniques/NPCs Destroyed . | . . Combat | -11 -10 -------- Run | Yrd Mat Hostile Shots Fired 99 | . 99 Missed 30 | . 30 Hits 69 | . 69 Projectile 69 | . 69 Damage Taken 854 | . 854 Core 255 | . 255 Absorbed by Shields . | . . Core Remaining (%) 100 | 100 . Volleys Fired 17 | . 17 Largest 2 | . 2 Hottest 100 | . 100 Shots Fired 30 | . 30 Gun 28 | . 28 Cannon . | . . Launcher . | . . Special 2 | . 2 Kinetic 5 | . 5 Thermal 16 | . 16 Explosive . | . . Electromagnetic 9 | . 9 Robot Hit Streak 9 | . 9 Robot Miss Streak 2 | . 2 Penetration Max . | . . Secondary Targets 1 | . 1 Max Gunslinging Chain 1 | . 1 Shots Hit Robots 20 | . 20 Core Hits 10 | . 10 Critical Kills . | . . Critical Parts Destroyed . | . . Critical Strikes 2 | . 2 Burn 2 | . 2 Melee Attacks . | . . Impact . | . . Slashing . | . . Piercing . | . . Sneak Attacks . | . . Combat Hostiles . | . . Follow-up Attacks . | . . Damage Inflicted 281 | . 281 Guns 233 | . 233 Cannons . | . . Explosions . | . . Melee . | . . Ramming . | . . Kinetic 57 | . 57 Thermal 197 | . 197 Explosive . | . . Electromagnetic 27 | . 27 Impact . | . . Slashing . | . . Piercing . | . . Highest Corruption . | . . Average Corruption . | . . Corruption Purged . | . . Corruption Blocked . | . . Overload Shots . | . . Overflow Damage . | . . Projectiles . | . . Explosions . | . . Melee . | . . Knockbacks . | . . Impact . | . . Kinetic . | . . Secondary . | . . Self-Inflicted Damage . | . . Shots . | . . Rammed . | . . Targets Rammed . | . . Kicked . | . . Crushed . | . . Highest Temperature 117 | . 117 Average Temperature 43 | . 43 Received Heat Transfer 483 | . 483 Siege Activations . | . . Martial Activations . | . . Shielding Activations . | . . Robots Disrupted . | . . Combat Hostiles . | . . Robots Corrupted . | . . Combat Hostiles . | . . Parts Fried . | . . Impact Corruptions . | . . Robots Melted . | . . Combat Hostiles . | . . Parts Melted . | . . Heat Transferred 692 | . 692 Parts Sabotaged . | . . Parts Stolen . | . . Parts Stripped . | . . Power Chain Reactions . | . . Alert | -11 -10 ------- Run | Yrd Mat Maximum Alert Level . | . . Low Security (%) 100 | 100 100 Level 1 . | . . Level 2 . | . . Level 3 . | . . Level 4 . | . . Level 5 . | . . High Security . | . . Max Security . | . . Peak Influence 120 | . 120 Initial . | . . Average 33 | . 44 Influence Increases 190 | . 190 Destroy 0b10 Robot/C 100 | . 100 Destroy Leader 30 | . 30 Lose Combat Pursuer 60 | . 60 Influence Decreases 130 | . 130 Time Decay 50 | . 50 Lost Part 80 | . 80 Squads Dispatched 2 | . 2 Investigation 1 | . 1 Extermination . | . . Reinforcement 1 | . 1 Assault . | . . Garrison . | . . Intercept . | . . Searches Triggered . | . . Construction Impeded . | . . Haulers Reinforced . | . . Active Scanning Responses . | . . Cargo Convoy Interrupts . | . . Stealth | -11 -10 --------- Run | Yrd Mat Distress Signals 2 | . 2 Communications Jammed . | . . Distress Signals . | . . Times Spotted 11 | . 11 Peak Tracking Total 8 | . 8 Tactical Retreats 1 | . 1 Traps | -11 -10 ------- Run | Yrd Mat Traps Triggered 1 | . 1 Indirectly . | . . Trap Hack Attempts . | . . Triggered . | . . Disarmed . | . . Reprogrammed . | . . Reused . | . . Traps Extracted . | . . Installed . | . . Triggered . | . . Machines | -11 -10 ---------- Run | Yrd Mat Machines Disabled . | . . Max in Single Turn . | . . Machines Repaired . | . . Machines Dismantled . | . . Machines Sabotaged . | . . Overloaded Fab Kills . | . . Hacking | -11 -10 --------- Run | Yrd Mat Machines Accessed . | . . Terminals . | . . Fabricators . | . . Repair Stations . | . . Recycling Units . | . . Scanalyzers . | . . Garrison Access . | . . Total Hacks . | . . Successful . | . . Failed . | . . Catastrophic . | . . Database Lockouts . | . . Manual . | . . Terminals . | . . Fabricators . | . . Repair Stations . | . . Recycling Units . | . . Scanalyzers . | . . Garrison Access . | . . Terminal Hacks . | . . Fabricator Hacks . | . . Repair Station Hacks . | . . Recycling Unit Hacks . | . . Scanalyzer . | . . Garrison Access Hacks . | . . Unauthorized Hacks . | . . Terminals . | . . Fabricators . | . . Repair Stations . | . . Recycling Units . | . . Scanalyzers . | . . Garrison Access . | . . Data Cores Recovered . | . . Used . | . . Hacking Detections . | . . Full Trace Events . | . . Feedback Events . | . . Feedback Blocked . | . . Robot Schematics Acquired . | . . Robots Built . | . . Authchips . | . . Time . | . . Total Robot Build Rating . | . . Part Schematics Acquired . | . . Parts Built . | . . Authchips . | . . Time . | . . Total Part Build Rating . | . . Part Studies Acquired . | . . Parts Repaired . | . . Time . | . . Parts Recycled . | . . Recycled Matter . | . . Retrieved Matter . | . . Retrieved Components . | . . Parts Scanalyzed . | . . Part Schematics Acquired . | . . Parts Damaged . | . . Bothacking | -11 -10 ------------ Run | Yrd Mat Used RIF Installer . | . . Robots Hacked . | . . Non-combat . | . . Combat . | . . Robot Hacks Applied . | . . Relay Couplers Released . | . . Fabnet Peak Effective % . | . . Robots Rewired . | . . Allies Hacked . | . . Hacks Repelled . | . . Allies | -11 -10 -------- Run | Yrd Mat Total Allies . | . . Largest Group . | . . Highest-Rated Group . | . . Highest-Rated Ally . | . . Total Orders . | . . Ally Attacks . | . . Total Damage . | . . Kills . | . . Allies Corrupted . | . . Allies Melted . | . . Intel | -11 -10 ------- Run | Yrd Mat Active Infowar (turns) . | . . Robot Analysis Total . | . . Derelict Logs Recovered . | . . Drone Launches . | . . Drone Recoveries . | . . Exploration | -11 -10 ------------- Run | Yrd Mat Turns Passed 264 | 69 195 Spaces Moved 157 | 49 108 Core 19 | 7 12 Treads . | . . Legs 138 | 42 96 Wheels . | . . Hover . | . . Flight . | . . Fastest Speed 50 | 50 100 Average Speed 119 | 110 124 Slowest Speed 190 | 120 190 Overloaded Moves . | . . Propulsion Burnouts . | . . Robots Hopped . | . . Potential Cave-ins . | . . Cave-ins Triggered . | . . Exploration Rate (%) 10 | 4 16 Regions Visited 1 Branch Regions . Pre-discovered Areas . | . . Known Exits Taken . | . . Unknown Exits Taken 1 | 1 . Scrap Searched . | . . Spaces Dug . | . . Terrain Destroyed . | . . Melee . | . . Projectile . | . . AOE . | . . Terrain Rammed . | . . Walls Destroyed . | . . Machines Disabled . | . . Actions | -11 -10 --------- Run | Yrd Mat Total 198 | 64 134 Wait 2 | . 2 Move 156 | 48 108 Hop . | . . Pick Up 13 | 9 4 Fast Attach . | . . Attach 9 | 6 3 Detach . | . . Swap . | . . Drop 1 | 1 . Fire 17 | . 17 Melee . | . . Ram . | . . Kick . | . . Crush . | . . Escape Stasis . | . . Rewire . | . . Trap . | . . Miscellaneous . | . . Route ------- -11/Scrapyard -10/Materials History --------- Turn | Location | Event 6 | -11/Scrapyard | Discovered new exit (range 16) 70 | -11/Scrapyard | Entered Materials 233 | -10/Materials | Core integrity fell below 50% 252 | -10/Materials | Core integrity fell below 20% 265 | -10/Materials | Destroyed by G-47 Trooper with Particle Gun Last Messages --------------- 00234_ Ion Engine destroyed. 00234_ Acquired Mining Laser. 00236_ K-01 Serf collects debris. 00240_ Mining Laser destroyed. 00243_ Aluminum Leg destroyed. 00243_ U-05 Engineer builds a Door. 00243_ K-01 Serf collects debris. 00248_ G-34 Mercenary destroyed. 00250_ K-01 Serf collects debris. 00250_ Mining Laser destroyed. 00253_ K-01 Serf collects debris. 00258_ R-06 Scavenger collects Ion Engine. 00259_ K-01 Serf cleans the Recycling Unit. 00259_ R-06 Scavenger inserts Aluminum Leg into recycling unit. 00259_ K-01 Serf destroyed. 00262_ R-06 Scavenger inserts Heat Sink into recycling unit. 00263_ R-06 Scavenger collects Wheel. 00264_ Acquired Lgt. Cannon. Map ----- +----------------------------------------------------+ | ???????##########????????????????????????????????? | | ???????# #????????????????????????????????? | | ???????# """ #????????????????????????????????? | | ???##### """ #????????????????????????????????? | | ???# # """ #????????????????????????????????? | | ???# + #????????????????????????????????? | | ???# # """ #????????????????????????????????? | | ???# # """ #????????????????????????????????? | | ???# # """ #????????????????????????????????? | | ???# # #????????????????????????????????? | | #### ##########????????????????????????????????? | | #?????????????????????????????????????????? | | #?????????????????????????????????????????? | | #?????????????????????????????????????????? | | ###### #?????????????????????????????????????????? | | ?????# #?????????????????????????????????????????? | | ?????# #?????????????????????????????????????????? | | ?????# #?????????????????????????????????????????? | | ?????# #?????????????????????????????????????????? | | ?????# #?????????????????????????????????????????? | | ##+### ##?###????############????????????????????? | | # #?# ??# #??????? #???????????? | | # #?# ?# ####### ###?????????? | | + ##+##### # ????????? | | # ?# ## + g*ga r ????????? | | #??#""" #???????# %%%g @ w #???????????????? | | ???#""" #???????# "" r #???????????????? | | ???#""" ##+###### "Y ###?????????????? | | ???#""" ## ""r% +?????????????? | | ???#""" + % ! #?????????????? | | ???# ## u! #?????????????? | | ???################+########+### #?????????????? | | ?????????????????? ????????????? #?????????????? | | ?????????????????? "?????????????? #?????????????? | | ?????????????????? ????????????????#?????????????? | | ?????????????????? ??????????????????????????????? | | ?????????????????????????????????????????????????? | | ?????????????????????????????????????????????????? | | ?????????????????????????????????????????????????? | | ?????????????????????????????????????????????????? | | ?????????????????????????????????????????????????? | | ?????????????????????????????????????????????????? | | ?????????????????????????????????????????????????? | | ?????????????????????????????????????????????????? | | ?????????????????????????????????????????????????? | | ?????????????????????????????????????????????????? | | ?????????????????????????????????????????????????? | | | | | | | +----------------------------------------------------+ Best States ------------- Heat Dissipation 25 Energy Generation 10 Energy Capacity 250 Matter Stores 300 Matter Capacity 300 Sight Range 16 Terrain Scan Density 10 Evasion (%) 55 Item Schematics ----------------- None Robot Schematics ------------------ None Fabricated ------------ Nothing Repaired ---------- Nothing Studied --------- None Alien Tech Used ----------------- None Achievements -------------- None Challenges ------------ None Game ------ Seed SmallChipShotgun Manual? 0 Play Time 00:06:29 Cumulative 6.5 hours Start 2026.06.24 @ 21:04:04 End 2026.06.28 @ 18:59:54 Sessions 2 Manual Loads 0 Difficulty Rogue Special Mode None Game No. 20 Rogue 20 Adventurer 0 Explorer 0 Win Type - Total 0 Types 0/0/0/0/0/0/0/0/0/0 Lore% 3 Gallery% 12 Achievement% 10 Wizard Run 0 Options --------- Layout 1 ASCII 0 Keyboard 0 Movement Mouse Keybinds 0 Fullscreen 1 Font 24/Smallcaps Map View 50x35 Zoom Use 0% Tactical HUD 1 Map Filters NONE Filters NONE Steam 1 RUN: 4fad54ab-bdd7-4553-94ee-21867fdfd4ab